fUST/lending_fUST_20250821
["ID","MTS","AMOUNT","RATE_DAILY","PERIOD"]
[380469666,1755784258710,-518.18,0.00022465,3]
[380469667,1755784258720,-480.0,0.00022465,3]
[380469668,1755784258730,-480.0,0.00022465,3]
[380469669,1755784258739,-480.0,0.00022465,3]
[380469670,1755784258749,-480.0,0.00022465,3]
[380469671,1755784258759,-480.0,0.00022465,3]
[380469672,1755784258768,-1865.31,0.00022465,3]
[380469673,1755784258777,-605.76018746,0.00022465,3]
[380469674,1755784258787,-4527.87,0.00022465,3]
[380469675,1755784258796,-480.0,0.00022465,3]
[380469676,1755784258806,-480.0,0.00022465,3]
[380469677,1755784258816,-480.0,0.00022465,3]
[380469678,1755784258825,-480.0,0.00022465,3]
[380469679,1755784258834,-480.0,0.00022465,3]
[380469680,1755784258843,-480.0,0.00022465,3]
[380469681,1755784258853,-480.0,0.00022465,3]
[380469682,1755784258862,-977.28,0.00022465,3]
[380469683,1755784258874,-704.13,0.00022465,3]
[380469684,1755784258883,-837.28,0.00022465,3]
[380469685,1755784258892,-480.0,0.00022465,3]
[380469686,1755784258902,-1168.83,0.00022465,3]
[380469687,1755784258911,-6802.91,0.00022465,3]
[380469688,1755784258921,-2695.37,0.00022465,3]
[380469689,1755784258930,-480.0,0.00022465,3]
[380469690,1755784258940,-1329.4,0.00022465,3]
[380469691,1755784258949,-511.9,0.00022465,3]
[380469692,1755784258959,-480.0,0.00022465,3]
[380469693,1755784258968,-604.63,0.00022465,3]
[380469694,1755784258978,-480.0,0.00022465,3]
[380469695,1755784258987,-593.83,0.00022465,3]
[380469696,1755784258996,-480.0,0.00022465,3]
[380469697,1755784259006,-628.5,0.00022465,3]
[380469698,1755784259015,-191.13990144,0.00022465,3]
[380469699,1755784259025,-1657.31,0.00022465,3]
[380469700,1755784259034,-480.0,0.00022465,3]
[380469701,1755784259043,-1147.84,0.00022465,3]
[380469702,1755784259053,-462.32811205,0.00022465,3]
[380469703,1755784259063,-1047.6,0.00022465,3]
[380469704,1755784259072,-480.0,0.00022465,3]
[380469705,1755784259231,-481.73,0.00022465,3]
[380469706,1755784259240,-480.0,0.00022465,3]
[380469707,1755784259250,-151.0,0.00022465,7]
[380469708,1755784259260,-1008.02,0.00022465,3]
[380469709,1755784259269,-151.0,0.00022465,7]
[380469710,1755784259279,-498.12,0.00022465,3]
[380469711,1755784259289,-1691.8,0.00022465,3]
[380469712,1755784259299,-848.21,0.00022465,3]
[380469713,1755784259308,-1011.92,0.00022465,3]
[380469714,1755784259319,-151.0,0.00022465,7]
[380469715,1755784259328,-878.75,0.00022465,3]
[380469716,1755784259339,-480.0,0.00022465,3]
[380469717,1755784259349,-480.0,0.00022465,3]
[380469718,1755784259359,-500.0,0.00022465,3]
[380469719,1755784259371,-566.67,0.00022465,3]
[380469720,1755784259381,-861.91,0.00022465,3]
[380469721,1755784259390,-637.14,0.00022465,3]
[380469722,1755784259400,-480.0,0.00022465,3]
[380469723,1755784259409,-480.0,0.00022465,3]
[380469724,1755784259419,-199.16358068,0.00022465,3]
[380469725,1755784259428,-387.25193278,0.00022465,3]
[380469726,1755784259437,-151.0,0.00022465,3]
[380469727,1755784259447,-151.0,0.00022465,3]
[380469728,1755784259457,-954.1,0.00022465,3]
[380469729,1755784259467,-480.0,0.00022465,3]
[380469730,1755784259477,-438.0,0.00022465,3]
[380469731,1755784259486,-480.0,0.00022465,3]
[380469732,1755784259496,-1569.83,0.00022465,3]
[380469733,1755784259506,-953.28,0.00022465,3]
[380469734,1755784259515,-480.0,0.00022465,3]
[380469735,1755784259525,-1069.73,0.00022465,2]
[380469736,1755784259534,-492.54,0.00022465,3]
[380469737,1755784259544,-480.0,0.00022465,3]
[380469738,1755784259555,-379.31344015,0.00022465,3]
[380469739,1755784259564,-1945.47,0.00022465,3]
[380469740,1755784259573,-480.0,0.00022465,3]
[380469741,1755784259582,-480.0,0.00022465,3]
[380469742,1755784259592,-480.0,0.00022465,3]
[380469743,1755784259601,-360.0,0.00022465,3]
[380469744,1755784259614,-480.0,0.00022465,3]
[380469745,1755784259626,-480.0,0.00022465,3]
[380469746,1755784259635,-10761.45,0.00022465,3]
[380469747,1755784259645,-480.0,0.00022465,3]
[380469748,1755784259655,-480.0,0.00022465,3]
[380469749,1755784259666,-151.0,0.00022465,3]
[380469750,1755784259675,-480.0,0.00022465,3]
[380469751,1755784259687,-151.0,0.00022465,3]
[380469752,1755784259701,-1192.65,0.00022465,3]
[380469753,1755784259710,-151.0,0.00022465,3]
[380469754,1755784259720,-181.915348,0.00022465,7]
[380469755,1755784259730,-480.0,0.00022465,3]
[380469756,1755784259739,-181.915348,0.00022465,7]
[380469757,1755784259749,-2150.08,0.00022465,3]
[380469758,1755784259758,-891.25,0.00022465,3]
[380469759,1755784259768,-6506.65,0.00022465,3]
[380469760,1755784259778,-2075.2,0.00022465,3]
[380469761,1755784259787,-480.0,0.00022465,3]
[380469762,1755784259797,-181.915348,0.00022465,7]
[380469763,1755784259806,-1182.67,0.00022465,3]
[380469764,1755784259815,-181.915348,0.00022465,7]
[380469765,1755784259824,-480.0,0.00022465,3]
[380469766,1755784259834,-2832.33,0.00022465,3]
[380469767,1755784259843,-480.0,0.00022465,3]
[380469768,1755784259852,-480.0,0.00022465,3]
[380469769,1755784259862,-181.915348,0.00022465,7]
[380469770,1755784259872,-181.915348,0.00022465,7]
[380469771,1755784259882,-480.0,0.00022465,3]
[380469772,1755784259892,-909.41,0.00022465,3]
[380469773,1755784259901,-420.0,0.00022465,3]
[380469774,1755784259910,-1109.68,0.00022465,3]
[380469775,1755784259919,-480.0,0.00022465,3]
[380469776,1755784259929,-181.915348,0.00022465,7]
[380469777,1755784259939,-181.915357,0.00022465,7]
[380469778,1755784259948,-1751.79,0.00022465,3]
[380469779,1755784259957,-1913.22,0.00022465,3]
[380469780,1755784259967,-1156.28,0.00022465,3]
[380469781,1755784259976,-480.0,0.00022465,3]
[380469782,1755784259986,-480.0,0.00022465,3]
[380469783,1755784259996,-1242.0,0.00022465,3]
[380469784,1755784260005,-480.0,0.00022465,3]
[380469785,1755784260014,-480.0,0.00022465,3]
[380469786,1755784260023,-5256.79,0.00022465,3]
[380469787,1755784260033,-480.0,0.00022465,3]
[380469788,1755784260043,-480.0,0.00022465,3]
[380469789,1755784260054,-500.0,0.00022465,3]
[380469790,1755784260065,-480.0,0.00022465,3]
[380469791,1755784260076,-480.0,0.00022465,3]
[380469792,1755784260095,-480.0,0.00022465,3]
[380469793,1755784260105,-560.22213754,0.00022465,3]
[380469794,1755784260121,-693.34,0.00022465,3]
[380469795,1755784260134,-480.0,0.00022465,3]
[380469796,1755784260144,-870.78,0.00022465,3]
[380469797,1755784260155,-1273.23,0.00022465,3]
[380469798,1755784260165,-1998.85,0.00022465,3]
[380469799,1755784260175,-2662.61,0.00022465,3]
[380469800,1755784260186,-1008.22,0.00022465,3]
[380469801,1755784260196,-480.0,0.00022465,3]
[380469802,1755784260205,-151.0,0.00022465,7]
[380469803,1755784260215,-480.0,0.00022465,3]
[380469804,1755784260225,-625.97,0.00022465,3]
[380469805,1755784260234,-2782.41,0.00022465,3]
[380469806,1755784260244,-489.44,0.00022465,3]
[380469807,1755784260254,-764.56,0.00022465,3]
[380469808,1755784260264,-2632.47,0.00022465,3]
[380469809,1755784260274,-618.09,0.00022465,3]
[380469810,1755784260283,-480.0,0.00022465,3]
[380469811,1755784260293,-480.0,0.00022465,3]
[380469812,1755784260303,-4375.13,0.00022465,3]
[380469813,1755784260312,-480.0,0.00022465,3]
[380469814,1755784260322,-1119.38,0.00022465,3]
[380469815,1755784260332,-1528.51,0.00022465,3]
[380469816,1755784260341,-480.0,0.00022465,3]
[380469817,1755784260351,-4590.66,0.00022465,3]
[380469818,1755784260361,-480.0,0.00022465,3]
[380469819,1755784260373,-480.0,0.00022465,3]
[380469820,1755784260383,-480.0,0.00022465,3]
[380469821,1755784260392,-480.0,0.00022465,3]
[380469822,1755784260402,-3387.36,0.00022465,3]
[380469823,1755784260412,-1442.8,0.00022465,3]
[380469824,1755784260422,-480.0,0.00022465,3]
[380469825,1755784260432,-5475.74,0.00022465,3]
[380469826,1755784260442,-480.0,0.00022465,3]
[380469827,1755784260452,-1398.34,0.00022465,3]
[380469828,1755784260461,-701.21,0.00022465,3]
[380469829,1755784260471,-1339.72,0.00022465,3]
[380469830,1755784260481,-480.0,0.00022465,3]
[380469831,1755784260491,-480.0,0.00022465,3]
[380469832,1755784260500,-4764.76,0.00022465,3]
[380469833,1755784260510,-480.0,0.00022465,3]
[380469834,1755784260519,-16215.95,0.00022465,3]
[380469835,1755784260529,-151.0,0.00022465,7]
[380469836,1755784260539,-151.0,0.00022465,7]
[380469837,1755784260549,-151.0,0.00022465,7]
[380469838,1755784260559,-480.0,0.00022465,3]
[380469839,1755784260568,-151.0,0.00022465,7]
[380469840,1755784260579,-480.0,0.00022465,3]
[380469841,1755784260589,-491.64174353,0.00022465,3]
[380469842,1755784260598,-1413.78,0.00022465,3]
[380469843,1755784260610,-276.954792,0.00022465,7]
[380469844,1755784260623,-3039.03,0.00022465,3]
[380469845,1755784260634,-1735.62,0.00022465,3]
[380469846,1755784260644,-1009.35,0.00022465,3]
[380469847,1755784260655,-480.0,0.00022465,3]
[380469848,1755784260664,-480.0,0.00022465,3]
[380469849,1755784260674,-5649.49,0.00022465,3]
[380469850,1755784260684,-494.24,0.00022465,3]
[380469851,1755784260694,-480.0,0.00022465,3]
[380469852,1755784260705,-2373.67,0.00022465,3]
[380469853,1755784260715,-667.92,0.00022465,3]
[380469854,1755784260725,-850.63,0.00022465,3]
[380469855,1755784260735,-699.26,0.00022465,3]
[380469856,1755784260744,-480.0,0.00022465,3]
[380469857,1755784260753,-164.049696,0.00022465,7]
[380469858,1755784260763,-813.92,0.00022465,3]
[380469859,1755784260772,-514.48,0.00022465,3]
[380469860,1755784260782,-1049.04,0.00022465,3]
[380469861,1755784260792,-480.0,0.00022465,3]
[380469862,1755784260802,-480.0,0.00022465,3]
[380469863,1755784260811,-5049.76,0.00022465,3]
[380469864,1755784260821,-480.0,0.00022465,3]
[380469865,1755784260830,-7769.71,0.00022465,3]
[380469866,1755784260839,-480.0,0.00022465,3]
[380469867,1755784260848,-480.0,0.00022465,3]
[380469868,1755784260858,-2302.55,0.00022465,3]
[380469869,1755784260867,-480.0,0.00022465,3]
[380469870,1755784260882,-835.14,0.00022465,3]
[380469871,1755784260892,-480.0,0.00022465,3]
[380469872,1755784260901,-480.0,0.00022465,3]
[380469873,1755784260910,-480.0,0.00022465,3]
[380469874,1755784260920,-480.0,0.00022465,3]
[380469875,1755784260930,-480.0,0.00022465,3]
[380469876,1755784260939,-480.0,0.00022465,3]
[380469877,1755784260948,-480.0,0.00022465,3]
[380469878,1755784260958,-1029.94,0.00022465,3]
[380469879,1755784260969,-1063.09,0.00022465,3]
[380469880,1755784260979,-480.0,0.00022465,3]
[380469881,1755784260989,-5508.69,0.00022465,3]
[380469882,1755784260998,-2043.15,0.00022465,3]
[380469883,1755784261007,-2272.46,0.00022465,3]
[380469884,1755784261017,-13950.6,0.00022465,3]
[380469885,1755784261026,-480.0,0.00022465,3]
[380469886,1755784261035,-666.76,0.00022465,3]
[380469887,1755784261045,-151.0,0.00022465,3]
[380469888,1755784261054,-480.0,0.00022465,3]
[380469889,1755784261063,-480.0,0.00022465,3]
[380469890,1755784261072,-480.0,0.00022465,3]
[380469891,1755784261081,-151.0,0.00022465,2]
[380469892,1755784261091,-1614.44,0.00022465,3]
[380469893,1755784261100,-984.13,0.00022465,3]
[380469894,1755784261109,-151.0,0.00022465,3]
[380469895,1755784261119,-735.69,0.00022465,3]
[380469896,1755784261131,-348.81071182,0.00022465,3]
[380469897,1755784261843,-131.18928818,0.00022465,3]
[380469898,1755784262011,-118.81071182,0.00022465,3]
[380469906,1755784586851,2129.57588524,0.00018812,2]
[380469907,1755784586877,10000.0,0.00018812,2]
[380469908,1755784586902,3786.88127126,0.00018812,2]
[380469909,1755784592909,5000.0,0.00019599,2]
[380469910,1755784609467,1213.11872874,0.00019599,2]
[380469911,1755784609490,3786.88127126,0.00019599,2]
[380469913,1755784625623,5000.0,0.00019599,2]
[380469914,1755784643274,1213.11872874,0.00019599,2]
[380469915,1755784643297,3786.88127126,0.00019599,2]
[380469917,1755785048420,365.931069,0.00013699,2]
[380469919,1755785357181,591.80018151,0.00027397,120]
[380469972,1755785432230,-857.18437779,0.000198,2]
[380469974,1755785432240,-150.77373924,0.000198,2]
[380469976,1755785432249,-171.908162,0.00019863,2]
[380469978,1755785432258,-2008.60013295,0.000199,2]
[380469980,1755785432268,-500.0,0.0002,2]
[380469982,1755785432277,-528.392066,0.00020092,2]
[380469984,1755785432287,-597.918712,0.00020133,2]
[380469986,1755785432296,-365.931069,0.00020187,2]
[380469988,1755785432305,-1200.0,0.00020227,2]
[380469990,1755785432315,-1200.0,0.00020228,2]
[380469992,1755785432325,-300.0,0.00020228,2]
[380469994,1755785432334,-300.0,0.00020228,2]
[380469996,1755785432343,-300.0,0.00020228,2]
[380469998,1755785432353,-300.0,0.00020228,2]
[380470000,1755785432363,-300.0,0.00020228,2]
[380470002,1755785432372,-94.04318842,0.00020229,2]
[380470005,1755785432398,-353.79393509,0.00020229,2]
[380470098,1755785438218,-287.70733921,0.00020229,2]
[380470099,1755785438230,-357.93594716,0.00020229,2]
[380470100,1755785438241,-844.5497084,0.00020229,2]
[380470101,1755785438255,-8351.20116109,0.00020229,2]
[380470102,1755785438265,-6780.3653277,0.0002023,2]
[380470103,1755785438274,-422.34,0.00020361,2]
[380470104,1755785438283,-151.0,0.00020361,2]
[380470105,1755785438294,-397.80668332,0.00020365,2]
[380470106,1755785438303,-10000.0,0.00020373,2]
[380470107,1755785438313,-500.0,0.00020547,2]
[380470108,1755785438322,-2008.60013268,0.00020835,2]
[380470109,1755785438331,-1000.0,0.00020856,2]
[380470111,1755785438341,-408.0,0.00021061,2]
[380470112,1755785438350,-500.0,0.00021095,2]
[380470113,1755785438360,-500.0,0.00021643,2]
[380470114,1755785438370,-151.0,0.0002173,2]
[380470115,1755785438380,-2008.60013268,0.00021771,2]
[380470116,1755785438389,-195.45632918,0.00021805,2]
[380470117,1755785438402,-356.38,0.00021807,10]
[380470119,1755785438411,-296.99,0.00021807,10]
[380470120,1755785438421,-1000.0,0.00021817,2]
[380470121,1755785438431,-22452.26023337,0.00021817,2]
[380470122,1755785438448,-30459.66239948,0.00021817,2]
[380470124,1755785438457,-645.03186396,0.00021817,2]
[380470125,1755785438469,-736.12090922,0.00021817,2]
[380470126,1755785438481,-1382.87092637,0.00021817,2]
[380470127,1755785438491,-185.2132315,0.00021817,2]
[380470128,1755785438500,-43.65444456,0.00021844,2]
[380470129,1755785438513,-1356.34555544,0.00021844,2]
[380470130,1755785438523,-216.22630738,0.00021881,2]
[380470131,1755785438533,-500.0,0.00021881,2]
[380470132,1755785438543,-234.63103739,0.00021881,2]
[380470133,1755785438552,-500.0,0.00021881,2]
[380470134,1755785438562,-160.16243712,0.00021881,2]
[380470135,1755785438572,-373.36982977,0.00021881,2]
[380470147,1755785440061,-191.47035529,0.00021881,2]
[380470149,1755785440071,-500.0,0.00021881,2]
[380470151,1755785440082,-154.26239162,0.00021881,2]
[380470153,1755785440093,-6.13199531,0.00021881,2]
[380470199,1755785443270,-265.20445555,0.00019717,2]
[380470202,1755785443279,-27.79730609,0.00021881,2]
[380470236,1755785446347,-289.958017,0.00021226,2]
[380470237,1755785446356,-180.432452,0.00021243,2]
[380470238,1755785446366,-163.94928213,0.00021881,2]
[380470239,1755785446375,-255.17850096,0.00021881,2]
[380470240,1755785446384,-150.361,0.00021882,2]
[380470241,1755785446393,-221.513,0.00021882,2]
[380470242,1755785446406,-204.131,0.00021882,2]
[380470243,1755785446415,-261.394,0.00021882,2]
[380470244,1755785446425,-219.652,0.00021882,2]
[380470245,1755785446434,-973.0,0.00021882,2]
[380470246,1755785446443,-585.64459311,0.00021882,2]
[380470272,1755785784088,513.52,0.00015984,2]
[380470273,1755785787061,400.82,0.00015984,2]
[380470274,1755785787614,400.82,0.00015984,2]
[380470276,1755785945690,295.61,0.00015984,2]
[380470277,1755785946216,295.61,0.00015984,2]
[380470278,1755785946724,295.61,0.00015984,2]
[380470281,1755786152478,3645.19765974,0.00019599,2]
[380470282,1755786152501,1354.80234026,0.00019599,2]
[380470283,1755786174995,361.502106,0.00013699,2]
[380470291,1755786337585,730.1,0.00027397,120]
[380470339,1755786441121,-176.80297036,0.00019782,2]
[380470340,1755786441144,-1841.32287183,0.000199,2]
[380470341,1755786441166,-361.502106,0.00020187,2]
[380470342,1755786441187,-4083.5428435,0.00020299,2]
[380470343,1755786441209,-500.0,0.00020372,2]
[380470344,1755786441230,-1000.0,0.00020377,2]
[380470345,1755786441254,-1152.0,0.00020793,2]
[380470346,1755786441276,-158.04826531,0.00020794,2]
[380470348,1755786446114,-2287.54925332,0.00020794,2]
[380470349,1755786446136,-1200.0,0.00020831,2]
[380470350,1755786446157,-7200.87307244,0.00020833,2]
[380470351,1755786446178,-232.0,0.00020833,2]
[380470352,1755786446198,-300.0,0.00020833,2]
[380470353,1755786446218,-300.0,0.00020833,2]
[380470354,1755786446240,-1841.32287164,0.00020835,2]
[380470355,1755786446262,-2105.80870262,0.00020879,2]
[380470356,1755786446282,-10000.0,0.00020891,2]
[380470357,1755786446314,-605.814502,0.00020894,2]
[380470358,1755786446336,-500.0,0.0002092,2]
[380470359,1755786446357,-519.97606643,0.00020997,2]
[380470360,1755786446377,-161.08699025,0.00021,3]
[380470361,1755786446399,-355.8163908,0.00021355,2]
[380470362,1755786446421,-168.0,0.00021404,2]
[380470363,1755786446441,-500.0,0.00021468,2]
[380470364,1755786446462,-527.25536525,0.0002162,2]
[380470365,1755786446740,-240.02769705,0.0002162,2]
[380470366,1755786446763,-2445.5975186,0.00021666,2]
[380470367,1755786446784,-151.0,0.00021704,2]
[380470368,1755786446805,-1657.23,0.00021707,3]
[380470369,1755786446826,-828.62,0.00021707,3]
[380470370,1755786446847,-414.31,0.00021707,3]
[380470371,1755786446867,-207.15,0.00021707,3]
[380470372,1755786446887,-621.5,0.00021707,3]
[380470373,1755786446906,-247.49,0.00021707,10]
[380470374,1755786446926,-206.24,0.00021707,10]
[380470375,1755786446946,-3869.82449995,0.00021717,2]
[380470376,1755786446967,-38668.72573365,0.00021717,2]
[380470382,1755786500896,150.0,0.00014699,2]
[380470383,1755786501411,150.0,0.00016145,2]
[380470384,1755786501940,150.0,0.0001759,2]
[380470385,1755786502879,150.0,0.00019036,2]
[380470386,1755786512570,3905.37722598,0.00017,2]
[380470388,1755786546114,-300.0,0.00019999,2]
[380470389,1755786546135,-4227.75939334,0.0002,2]
[380470399,1755786607933,336.99,0.00015984,2]
[380470400,1755786608458,336.99,0.00015984,2]
[380470452,1755786635311,-1669.56795716,0.000199,2]
[380470454,1755786635320,-1834.19813895,0.000199,2]
[380470456,1755786635330,-300.0,0.00019999,2]
[380470458,1755786635339,-240.0,0.00019999,2]
[380470460,1755786635348,-300.0,0.00019999,2]
[380470462,1755786635357,-962.56491016,0.0002,2]
[380470464,1755786635366,-3325.36126136,0.0002,2]
[380470466,1755786635381,-62422.31271625,0.0002,2]
[380470468,1755786635391,-28686.62269816,0.0002,2]
[380470470,1755786635403,-171.908162,0.00020612,2]
[380470472,1755786635412,-1669.56795715,0.00020835,2]
[380470474,1755786635421,-1834.19813895,0.000209,2]
[380470476,1755786635431,-171.87,0.0002129,10]
[380470478,1755786635440,-3378.0,0.000213,2]
[380470480,1755786635449,-151.0,0.00021704,2]
[380470482,1755786635459,-1934.91224998,0.00021717,2]
[380470484,1755786635468,-7627.29353775,0.00021717,2]
[380470518,1755786635732,-8707.024296,0.00021717,2]
[380470638,1755786638413,-1148.01990208,0.00021717,2]
[380470639,1755786638429,-159350.04561751,0.00021717,2]
[380470640,1755786638439,-1669.56795715,0.00021771,2]
[380470641,1755786638448,-420.0,0.00021777,2]
[380470642,1755786638457,-783.25209514,0.00021791,2]
[380470643,1755786638467,-527.25536521,0.00021806,2]
[380470644,1755786638476,-6539.18217495,0.0002181,2]
[380470645,1755786638486,-1000.0,0.00021817,2]
[380470646,1755786638495,-283.25,0.00021821,2]
[380470647,1755786638504,-283.25,0.00021821,2]
[380470648,1755786638513,-283.25,0.00021821,2]
[380470649,1755786638522,-283.25,0.00021821,2]
[380470650,1755786638531,-283.25,0.00021821,2]
[380470651,1755786638541,-156.37,0.00021821,2]
[380470652,1755786638550,-637.0,0.00021879,2]
[380470653,1755786638559,-2154.0,0.00021879,2]
[380470654,1755786638568,-151.0,0.00021882,2]
[380470655,1755786638578,-160.15851128,0.00021882,2]
[380470656,1755786638587,-153.0,0.0002189,2]
[380470657,1755786638597,-1306.0027209,0.0002189,2]
[380470658,1755786638611,-3000.0,0.000219,2]
[380470659,1755786638620,-202.997424,0.000219,10]
[380470660,1755786638629,-232.28399145,0.0002191,2]
[380470661,1755786638640,-216.95272161,0.0002191,2]
[380470662,1755786638649,-844.19128999,0.0002191,2]
[380470663,1755786638662,-215.86710461,0.0002191,2]
[380470664,1755786638673,-3000.0,0.0002191,2]
[380470665,1755786638683,-500.0,0.00021916,2]
[380470666,1755786638693,-500.0,0.00021916,2]
[380470667,1755786638704,-500.0,0.00021916,2]
[380470668,1755786638714,-451.04541208,0.00021916,2]
[380470669,1755786638723,-530.92976264,0.00021916,2]
[380470670,1755786638733,-500.0,0.00021917,3]
[380470671,1755786638743,-480.0,0.00021917,3]
[380470672,1755786638752,-461.78100396,0.00021917,3]
[380470673,1755786638762,-610.79517868,0.00021917,3]
[380470674,1755786638771,-480.0,0.00021917,3]
[380470675,1755786638780,-506.2,0.00021917,3]
[380470676,1755786638789,-480.0,0.00021917,3]
[380470677,1755786638799,-480.0,0.00021917,3]
[380470678,1755786638808,-480.0,0.00021917,3]
[380470679,1755786638818,-480.0,0.00021917,3]
[380470680,1755786638827,-480.0,0.00021917,3]
[380470681,1755786638836,-480.0,0.00021917,3]
[380470682,1755786638846,-480.0,0.00021917,3]
[380470683,1755786638856,-480.0,0.00021917,3]
[380470684,1755786638865,-480.0,0.00021917,3]
[380470685,1755786638875,-516.73,0.00021917,3]
[380470686,1755786638884,-480.0,0.00021917,3]
[380470687,1755786638893,-480.0,0.00021917,3]
[380470688,1755786638903,-480.0,0.00021917,3]
[380470689,1755786638913,-480.0,0.00021917,3]
[380470690,1755786638922,-480.0,0.00021917,3]
[380470691,1755786638931,-519.87,0.00021917,3]
[380470692,1755786638940,-480.0,0.00021917,3]
[380470693,1755786638950,-480.0,0.00021917,3]
[380470694,1755786638959,-480.0,0.00021917,3]
[380470695,1755786638968,-482.9,0.00021917,3]
[380470696,1755786638977,-480.0,0.00021917,3]
[380470697,1755786638986,-901.05,0.00021917,3]
[380470698,1755786638995,-480.0,0.00021917,3]
[380470699,1755786639005,-480.0,0.00021917,3]
[380470700,1755786639014,-480.0,0.00021917,3]
[380470701,1755786639023,-480.0,0.00021917,3]
[380470702,1755786639032,-480.0,0.00021917,3]
[380470703,1755786639040,-480.0,0.00021917,3]
[380470704,1755786639050,-480.0,0.00021917,3]
[380470705,1755786639059,-480.0,0.00021917,3]
[380470706,1755786639067,-209.63811212,0.00021917,3]
[380470707,1755786639076,-480.0,0.00021917,3]
[380470708,1755786639085,-480.0,0.00021917,3]
[380470709,1755786639094,-172.609599,0.00021917,2]
[380470710,1755786639103,-480.0,0.00021917,3]
[380470711,1755786639112,-480.0,0.00021917,3]
[380470712,1755786639121,-480.0,0.00021917,3]
[380470713,1755786639130,-480.0,0.00021917,3]
[380470714,1755786639139,-480.0,0.00021917,3]
[380470715,1755786639148,-476.19570646,0.00021917,3]
[380470716,1755786639159,-480.0,0.00021917,3]
[380470717,1755786639168,-761.07,0.00021917,3]
[380470718,1755786639177,-480.0,0.00021917,3]
[380470719,1755786639186,-480.0,0.00021917,3]
[380470720,1755786639195,-480.0,0.00021917,3]
[380470721,1755786639204,-480.0,0.00021917,3]
[380470722,1755786639214,-480.0,0.00021917,3]
[380470723,1755786639223,-480.0,0.00021917,3]
[380470724,1755786639232,-480.0,0.00021917,3]
[380470725,1755786639242,-480.0,0.00021917,3]
[380470726,1755786639252,-480.0,0.00021917,3]
[380470727,1755786639261,-480.0,0.00021917,3]
[380470728,1755786639270,-480.0,0.00021917,3]
[380470729,1755786639279,-522.13,0.00021917,3]
[380470730,1755786639288,-480.0,0.00021917,3]
[380470731,1755786639298,-480.0,0.00021917,3]
[380470732,1755786639307,-480.0,0.00021917,3]
[380470733,1755786639320,-489.24,0.00021917,3]
[380470734,1755786639329,-905.43,0.00021917,3]
[380470735,1755786639338,-480.0,0.00021917,3]
[380470736,1755786639348,-480.0,0.00021917,3]
[380470737,1755786639358,-480.0,0.00021917,3]
[380470738,1755786639367,-480.0,0.00021917,3]
[380470739,1755786639376,-480.0,0.00021917,3]
[380470740,1755786639386,-976.01,0.00021917,2]
[380470741,1755786639395,-449.74255349,0.00021917,3]
[380470742,1755786639406,-480.0,0.00021917,3]
[380470743,1755786639415,-480.0,0.00021917,3]
[380470744,1755786639424,-480.0,0.00021917,3]
[380470745,1755786639434,-299.19049466,0.00021917,3]
[380470746,1755786639444,-902.02,0.00021917,3]
[380470747,1755786639455,-722.06,0.00021917,3]
[380470748,1755786639464,-317.2146505,0.00021917,3]
[380470749,1755786639474,-480.0,0.00021917,3]
[380470750,1755786639483,-480.0,0.00021917,3]